[Event "WYCC 2018 O14"]
[Site "Halkidiki"]
[Date "2018.10.23"]
[Round "5"]
[White "Avila Pavas, Santiago"]
[Black "Zhukenov, Aituar"]
[Result "1-0"]
[ECO "A46"]
[WhiteElo "2277"]
[BlackElo "2025"]
[Annotator "NA"]
[PlyCount "111"]
[EventDate "2018.10.20"]
[EventType "swiss"]
[EventCountry "GRE"]
[SourceTitle "playchess.com"]
[Source "ChessBase"]
[SourceQuality "1"]
[TimeControl "40/5400+30:1800+30"]

1. d4 {[%emt 0:00:00]} Nf6 {[%emt 0:02:38]} 2. Nf3 {[%emt 0:00:00]} e6 {[%emt 0:00:03]} 3. g3 {[%emt 0:00:17]} c5 {[%emt 0:00:56]} 4. Bg2 {[%emt 0:01:13]} cxd4 {[%emt 0:01:16]} 5. Nxd4 {[%emt 0:00:43]} d5 {[%emt 0:00:40]} 6. c4 {[%emt 0:04:58]} e5 {[%emt 0:02:20]} 7. Nf3 {[%emt 0:01:32]} d4 {[%emt 0:00:45]} 8. O-O {[%emt 0:32:10] LiveBook: 456 Games} Nc6 {[%emt 0:01:19]} 9. Bg5 {[%emt 0:00:14]} Be7 {[%emt 0:02:38]} 10. e3 {[%emt 0:02:22] E01: Catalan: Early deviations} O-O {[%emt 0:06:15]} 11. exd4 {[%emt 0:06:37]} exd4 {[%emt 0:01:09]} 12. Nbd2 {[%emt 0:02:15]} Qb6 $146 {[%emt 0:09:14]} ({Predecessor:} 12... Be6 13. a3 a5 14. b3 Bf5 15. Re1 h6 16. Bxf6 Bxf6 17. c5 d3 18. Rb1 Ne7 {0-1 (60) Tunik,G (2384)-Edouard,R (2640) Minsk 2017}) 13. Qb3 {[%emt 0:03:33]} Be6 {[%emt 0:03:29]} 14. Rfe1 {[%emt 0:04:32]} h6 {[%emt 0:06:55]} 15. Bf4 {[%emt 0:05:12]} Rac8 {[%emt 0:07:57]} 16. Ne5 {[%emt 0:12:45]} Rfd8 {[%emt 0:09:47]} 17. Qxb6 {[%emt 0:08:27]} axb6 {[%emt 0:01:48]} 18. Nb3 {[%emt 0:00:01]} Nxe5 {[%emt 0:15:26]} 19. Bxe5 {[%emt 0:00:06]} Rxc4 {[%emt 0:01:09]} 20. Red1 {[%emt 0:07:07]} d3 {[%emt 0:05:28]} 21. Bxb7 {[%emt 0:00:02]} Bf5 {[%emt 0:05:06]} 22. Ba6 {[%emt 0:02:23]} Ra4 {[%emt 0:03:05]} 23. Bb5 {[%emt 0:00:02]} Rb4 {[%emt 0:00:19]} 24. Bc6 $15 {[%emt 0:01:31]} Rc4 {[%emt 0:01:36]} 25. Bb5 {[%emt 0:02:13]} Rb4 {[%emt 0:01:23]} 26. Ba6 {[%emt 0:00:01]} Ra4 {[%emt 0:02:18]} 27. Bb7 {[%emt 0:00:01]} Bd6 {[%emt 0:02:26]} 28. Bc3 {[%emt 0:01:07]} Ra7 {[%emt 0:01:02]} 29. Bc6 {[%emt 0:00:16]} Rc7 {[%emt 0:00:46]} 30. Nd4 {[%emt 0:02:38]} Bc5 {[%emt 0:01:10]} 31. Nxf5 {[%emt 0:00:16]} Rxc6 {[%emt 0:00:10]} 32. Rac1 {[%emt 0:00:48]} Ne4 {[%emt 0:02:06]} 33. Bd4 {[%emt 0:00:08]} d2 {[%emt 0:00:15]} 34. Rc2 {[%emt 0:00:16]} g6 {[%emt 0:02:23]} 35. Nxh6+ {[%emt 0:00:32]} Kh7 {[%emt 0:00:12]} 36. Bxc5 {[%emt 0:00:03]} Rxc5 {[%emt 0:01:03]} 37. Rxc5 {[%emt 0:00:04]} Nxc5 {[%emt 0:00:22]} 38. Nxf7 {[%emt 0:00:13]} Rd5 {[%emt 0:00:14]} 39. f4 {[%emt 0:00:43]} Ne4 {[%emt 0:01:35]} 40. Ng5+ {[%emt 0:00:00]} Nxg5 {[%emt 0:00:00]} 41. fxg5 {[%emt 0:01:28]} Rxg5 {[%emt 0:01:12]} 42. Rxd2 {[%emt 0:02:02]} Rc5 {[%emt 0:02:17]} 43. Kf2 {[%emt 0:01:02]} Rc6 {[%emt 0:01:57]} 44. Kf3 {[%emt 0:00:46]} Kg7 {[%emt 0:00:16]} 45. h4 {[%emt 0:01:44]} Kf6 {[%emt 0:00:38]} 46. Rd5 {[%emt 0:00:42]} Ke6 {[%emt 0:01:12]} 47. Rb5 {[%emt 0:00:26]} Kd6 {[%emt 0:00:43]} 48. Kg4 {[%emt 0:00:35]} Ke6 {[%emt 0:00:48]} 49. Kg5 {[%emt 0:00:13]} Kf7 {[%emt 0:00:07]} 50. g4 {[%emt 0:00:54]} Kg7 {[%emt 0:00:24]} 51. Rd5 {[%emt 0:00:21]} Rc7 {[%emt 0:00:32]} 52. b4 {[%emt 0:01:37]} Ra7 {[%emt 0:01:11]} 53. Rd6 {[%emt 0:00:12]} Rxa2 {[%emt 0:00:17]} 54. Rxg6+ {[%emt 0:00:08]} Kh7 {[%emt 0:00:05]} 55. Rxb6 {[%emt 0:00:06]} Ra7 {[%emt 0:00:07]} 56. Kh5 {[%emt 0:00:39]} 1-0

[Event "WYCC 2018 O14"]
[Site "Halkidiki"]
[Date "2018.10.23"]
[Round "5"]
[White "Manafov, Vugar"]
[Black "Dao, Minh Nhat"]
[Result "0-1"]
[ECO "A05"]
[WhiteElo "2245"]
[BlackElo "1956"]
[Annotator "NA"]
[PlyCount "84"]
[EventDate "2018.10.20"]
[EventType "swiss"]
[EventCountry "GRE"]
[SourceTitle "playchess.com"]
[Source "ChessBase"]
[SourceQuality "1"]
[TimeControl "40/5400+30:1800+30"]

1. Nf3 {[%emt 0:00:00]} Nf6 {[%emt 0:00:00]} 2. g3 {[%emt 0:00:00]} d5 {[%emt 0:00:09]} 3. Bg2 {[%emt 0:00:00]} c6 {[%emt 0:00:19]} 4. O-O {[%emt 0:00:00]} Bf5 {[%emt 0:00:08]} 5. d3 {[%emt 0:00:00]} e6 {[%emt 0:00:16]} 6. Nbd2 {[%emt 0:00:33]} h6 {[%emt 0:00:13]} 7. b3 {[%emt 0:00:37]} Be7 {[%emt 0:00:24]} 8. Bb2 {[%emt 0:00:07]} O-O {[%emt 0:00:52]} 9. c4 {[%emt 0:05:52]} a5 {[%emt 0:01:57]} 10. Re1 {[%emt 0:00:42] LiveBook: 12 Games} a4 {[%emt 0:04:35] A12: English Opening: 1...c6 with b3 by White} (10... Bh7 11. e4 dxe4 12. dxe4 Na6 13. Ne5 Nd7 14. Nxd7 Qxd7 15. Qg4 f6 16. Nf3 Nc5 17. Rad1 Qe8 18. Nd4 Qf7 19. Bh3 e5 20. Ne6 h5 21. Qe2 Nxe6 22. Rd7 Nc5 23. Rc7 {0-1 (23) Bacrot,E (2718)-Wojtaszek,R (2744) Beijing 2014}) 11. h3 $146 {[%emt 0:16:32]} ({Predecessor:} 11. e4 Bh7 12. e5 Nfd7 13. d4 a3 14. Bc3 Na6 15. c5 b6 16. b4 bxc5 17. dxc5 Naxc5 18. bxc5 Nxc5 19. Bf1 Na4 20. Rc1 c5 21. Ba1 {0-1 (33) Hengelbrock,J (2310)-Hovhannisyan,M (2458) Germany 2017}) 11... Bh7 {[%emt 0:02:19]} 12. Bc3 {[%emt 0:01:36]} c5 {[%emt 0:28:21]} 13. e4 {[%emt 0:05:06]} dxe4 {[%emt 0:09:29]} 14. dxe4 {[%emt 0:02:56]} Nc6 {[%emt 0:02:02]} 15. e5 {[%emt 0:00:47]} Nd7 {[%emt 0:03:09]} 16. Ne4 {[%emt 0:00:26]} Bxe4 {[%emt 0:01:41]} 17. Rxe4 {[%emt 0:00:14]} Ndb8 {[%emt 0:04:30]} 18. Qc1 {[%emt 0:15:39]} axb3 {[%emt 0:03:59]} 19. axb3 {[%emt 0:00:11]} Rxa1 $11 {[%emt 0:00:29]} 20. Qxa1 {[%emt 0:03:51]} Na6 {[%emt 0:02:00]} 21. Bd2 {[%emt 0:16:11]} Qd3 {[%emt 0:03:09]} 22. Re3 Qd7 23. Qb1 {[%emt 0:03:54]} Nab4 {[%emt 0:02:20]} 24. Qe4 {[%emt 0:00:54]} Ra8 {[%emt 0:02:54]} 25. h4 {[%emt 0:03:55]} Ra1+ {[%emt 0:01:34]} 26. Kh2 {[%emt 0:01:44]} Ra2 {[%emt 0:01:12]} 27. Be1 {[%emt 0:00:17]} Bf8 {[%emt 0:05:28]} 28. h5 {[%emt 0:01:56]} b6 {[%emt 0:03:15]} 29. g4 {[%emt 0:01:13]} Be7 {[%emt 0:00:10]} 30. g5 hxg5 {[%emt 0:01:56]} 31. Qg4 {[%emt 0:01:29]} Qd1 {[%emt 0:01:15]} 32. h6 {[%emt 0:01:56]} gxh6 {[%emt 0:06:12]} 33. Qh5 {[%emt 0:00:45]} Qb1 {[%emt 0:00:12]} 34. Nh4 {[%emt 0:05:22]} Qh7 {[%emt 0:01:15]} 35. f4 {[%emt 0:05:19]} gxh4 {[%emt 0:04:00]} 36. Bxh4 {[%emt 0:00:06]} Kf8 {[%emt 0:00:16]} 37. f5 {[%emt 0:00:56]} Bxh4 {[%emt 0:00:57]} 38. fxe6 {[%emt 0:00:58]} Rxg2+ {[%emt 0:00:56]} 39. Kxg2 {[%emt 0:00:06]} Qg6+ {[%emt 0:00:07]} 40. Qxg6 {[%emt 0:00:00]} fxg6 {[%emt 0:00:00]} 41. Rh3 {[%emt 0:00:09]} Bg5 {[%emt 0:00:08]} 42. Rd3 {[%emt 0:00:09]} Nxd3 0-1

[Event "WYCC 2018 O14"]
[Site "Halkidiki"]
[Date "2018.10.23"]
[Round "5"]
[White "Boyer, Mahel"]
[Black "Tsoi, Dmitry"]
[Result "0-1"]
[ECO "A04"]
[WhiteElo "2227"]
[BlackElo "2429"]
[Annotator "NA"]
[PlyCount "64"]
[EventDate "2018.10.20"]
[EventType "swiss"]
[EventCountry "GRE"]
[SourceTitle "playchess.com"]
[Source "ChessBase"]
[SourceQuality "1"]
[TimeControl "40/5400+30:1800+30"]

1. Nf3 {[%emt 0:00:00]} f5 {[%emt 0:00:00]} 2. d4 {[%emt 0:00:00]} Nf6 {[%emt 0:00:08]} 3. Bg5 {[%emt 0:00:02]} d5 {[%emt 0:04:34] A80: Dutch Defence: Unusual White second moves} (3... e6 4. Nbd2 Be7 5. e3 b6 6. Bd3 Bb7 7. Bxf6 Bxf6 8. e4 fxe4 9. Bxe4 d5 10. Bd3 O-O 11. O-O Nc6 12. c3 Qd6 13. Re1 {0-1 (36) Andreikin,D (2705)-Kamsky,G (2676) Sochi 2017}) 4. Bxf6 {[%emt 0:08:28]} exf6 {[%emt 0:00:09]} 5. e3 {[%emt 0:00:04]} Be6 {[%emt 0:00:10]} 6. Bd3 {[%emt 0:07:02] LiveBook: 4 Games} Qd7 {[%emt 0:00:36]} 7. Nbd2 {[%emt 0:07:38]} Nc6 $146 {[%emt 0:01:28]} ({Predecessor:} 7... Bd6 8. O-O g5 9. c4 c6 10. Qc2 Na6 11. a3 Rc8 {1-0 (38) Buechtmann,S-Bergmann,J Ruhrgebiet 1999}) 8. c4 {[%emt 0:00:07]} Nb4 {[%emt 0:05:07]} 9. Be2 {[%emt 0:00:19]} dxc4 {[%emt 0:00:25]} 10. Nxc4 {[%emt 0:01:31]} Be7 {[%emt 0:00:29]} 11. O-O {[%emt 0:00:14]} O-O {[%emt 0:01:06]} 12. Ne1 {[%emt 0:00:46]} Rad8 {[%emt 0:01:02]} 13. a3 {[%emt 0:01:33]} Nd5 {[%emt 0:00:06]} 14. Nd3 {[%emt 0:00:14]} Rfe8 {[%emt 0:16:01]} 15. Qc2 {[%emt 0:06:16]} b6 {[%emt 0:03:40]} 16. Rfd1 {[%emt 0:01:48]} Bf8 {[%emt 0:00:19]} 17. b4 {[%emt 0:01:42]} Qf7 {[%emt 0:00:37]} 18. Rac1 {[%emt 0:00:29]} g6 {[%emt 0:08:41]} 19. Bf3 {[%emt 0:01:31]} Kh8 $1 {[%emt 0:06:21]} 20. Nd2 {[%emt 0:03:08]} Bd6 {[%emt 0:05:48]} 21. Nc4 {[%emt 0:05:02]} Bf8 $14 {[%emt 0:00:29]} 22. Nd2 {[%emt 0:01:45]} Re7 {[%emt 0:05:23]} 23. Nb1 {[%emt 0:13:32]} Nxe3 {[%emt 0:03:22]} 24. fxe3 {[%emt 0:00:21]} Bb3 {[%emt 0:00:05]} 25. Qc3 {[%emt 0:09:24]} Bxd1 {[%emt 0:00:14]} 26. Bxd1 {[%emt 0:00:08]} Qe8 {[%emt 0:02:49]} 27. Bb3 {[%emt 0:09:44]} Bh6 {[%emt 0:00:40]} 28. Qc6 {[%emt 0:11:29]} Bxe3+ {[%emt 0:01:48]} 29. Kf1 {[%emt 0:00:17]} Bxc1 {[%emt 0:02:34]} 30. Qxf6+ {[%emt 0:00:10]} Rg7 {[%emt 0:00:02]} 31. Ne5 {[%emt 0:00:16]} Rd6 {[%emt 0:00:31]} 32. Nf7+ {[%emt 0:04:09]} Qxf7 {[%emt 0:00:05]} 0-1

[Event "WYCC 2018 O14"]
[Site "Halkidiki"]
[Date "2018.10.23"]
[Round "5"]
[White "Czopor, Maciej"]
[Black "Raja Rithvik R"]
[Result "1/2-1/2"]
[ECO "C81"]
[WhiteElo "2219"]
[BlackElo "2421"]
[Annotator "ChessBase"]
[PlyCount "122"]
[EventDate "2018.10.20"]
[EventType "swiss"]
[EventCountry "GRE"]
[SourceTitle "playchess.com"]
[Source "ChessBase"]
[SourceQuality "1"]
[TimeControl "40/5400+30:1800+30"]

1. e4 {[%emt 0:00:00]} e5 {[%emt 0:00:00]} 2. Nf3 {[%emt 0:00:00]} Nc6 {[%emt 0:00:00]} 3. Bb5 {[%emt 0:00:30]} a6 {[%emt 0:00:00]} 4. Ba4 {[%emt 0:00:11]} Nf6 {[%emt 0:00:02]} 5. O-O {[%emt 0:00:47]} Nxe4 {[%emt 0:00:05]} 6. d4 {[%emt 0:00:37]} b5 {[%emt 0:00:11]} 7. Bb3 {[%emt 0:00:12]} d5 {[%emt 0:00:04]} 8. dxe5 {[%emt 0:01:00]} Be6 {[%emt 0:00:04]} 9. Qe2 {[%emt 0:08:18]} Bc5 {[%emt 0:00:23]} 10. Be3 {[%emt 0:03:12]} O-O {[%emt 0:00:21]} 11. Rd1 {[%emt 0:22:47]} Re8 {[%emt 0:01:44]} 12. c4 {[%emt 0:08:53]} bxc4 {[%emt 0:05:51]} 13. Bxc4 {[%emt 0:00:30]} Bxe3 {[%emt 0:00:34]} 14. Qxe3 {[%emt 0:00:28]} Qb8 {[%emt 0:09:27]} 15. Bb3 {[%emt 0:03:53]} Qb6 {[%emt 0:12:40]} 16. Qxb6 {[%emt 0:02:08]} cxb6 {[%emt 0:00:16]} 17. Na3 {[%emt 0:08:36]} Rad8 {[%emt 0:05:50]} 18. Nc2 {[%emt 0:07:59]} Nc5 {[%emt 0:10:28]} 19. Ncd4 {[%emt 0:06:00]} Nb4 {[%emt 0:09:58]} 20. Ne1 {[%emt 0:09:21]} Bg4 {[%emt 0:05:57]} 21. f3 {[%emt 0:01:05]} Bh5 {[%emt 0:00:16]} 22. a3 {[%emt 0:03:26]} Nxb3 {[%emt 0:01:10]} 23. Nxb3 {[%emt 0:00:09]} Nc6 {[%emt 0:00:03]} 24. g4 {[%emt 0:00:26]} Bg6 {[%emt 0:00:05]} 25. f4 {[%emt 0:00:12]} Be4 {[%emt 0:00:14]} 26. Nd4 {[%emt 0:04:53]} Nxd4 {[%emt 0:02:16]} 27. Rxd4 {[%emt 0:00:05]} g5 {[%emt 0:00:03]} 28. fxg5 {[%emt 0:01:40]} Rxe5 {[%emt 0:00:05]} 29. h4 {[%emt 0:00:06]} Rd6 {[%emt 0:02:35]} 30. Kf2 {[%emt 0:02:23]} f6 {[%emt 0:01:15]} 31. Nf3 {[%emt 0:01:19]} Bxf3 {[%emt 0:02:57]} 32. Kxf3 {[%emt 0:00:05]} fxg5 {[%emt 0:00:02]} 33. hxg5 {[%emt 0:00:13]} Rxg5 {[%emt 0:00:09]} 34. Rc1 {[%emt 0:02:15]} Rg7 {[%emt 0:03:56]} 35. Rcd1 {[%emt 0:01:51]} Rgd7 {[%emt 0:03:02]} 36. Kf4 {[%emt 0:01:34]} Kf7 {[%emt 0:00:37]} 37. g5 {[%emt 0:00:44]} a5 {[%emt 0:02:57]} 38. b4 {[%emt 0:00:20]} axb4 {[%emt 0:02:37]} 39. axb4 {[%emt 0:00:04]} h6 {[%emt 0:02:15]} 40. gxh6 {[%emt 0:00:00]} Rxh6 {[%emt 0:00:00]} 41. Rxd5 {[%emt 0:04:04]} Rh4+ {[%emt 0:00:10]} 42. Ke3 {[%emt 0:00:42]} Rxd5 {[%emt 0:01:18]} 43. Rxd5 {[%emt 0:01:43]} Rxb4 {[%emt 0:00:03]} 44. Kd2 {[%emt 0:00:56]} Ke6 {[%emt 0:00:04]} 45. Rh5 {[%emt 0:02:21]} Kd6 {[%emt 0:00:06]} 46. Kc3 {[%emt 0:00:28]} Rg4 {[%emt 0:00:02]} 47. Kb3 {[%emt 0:00:23]} Kc6 {[%emt 0:00:06]} 48. Rf5 {[%emt 0:01:01]} Rd4 {[%emt 0:00:05]} 49. Rh5 {[%emt 0:00:23]} Rd5 {[%emt 0:00:03]} 50. Rxd5 {[%emt 0:00:11]} Kxd5 {[%emt 0:00:02]} 51. Kb4 {[%emt 0:00:06]} Kc6 {[%emt 0:00:06]} 52. Kc4 {[%emt 0:00:06]} b5+ {[%emt 0:00:01]} 53. Kb4 {[%emt 0:00:09]} Kb6 {[%emt 0:00:02]} 54. Kb3 {[%emt 0:00:05]} Kc5 {[%emt 0:00:02]} 55. Kc3 {[%emt 0:00:06]} b4+ {[%emt 0:00:01]} 56. Kb3 {[%emt 0:00:05]} Kb5 {[%emt 0:00:02]} 57. Kb2 {[%emt 0:00:13]} Kc4 {[%emt 0:00:01]} 58. Kc2 {[%emt 0:00:07]} b3+ {[%emt 0:00:02]} 59. Kb1 {[%emt 0:00:10]} Kc3 {[%emt 0:00:05]} 60. Kc1 {[%emt 0:00:03]} b2+ {[%emt 0:00:02]} 61. Kb1 {[%emt 0:00:05]} Kb3 {[%emt 0:00:02]} 1/2-1/2

[Event "WYCC 2018 O14"]
[Site "Halkidiki"]
[Date "2018.10.23"]
[Round "5"]
[White "Tengis, Tsog-Ochir"]
[Black "Murzin, Volodar"]
[Result "1-0"]
[ECO "D11"]
[WhiteElo "2205"]
[BlackElo "2340"]
[Annotator "NA"]
[PlyCount "91"]
[EventDate "2018.10.20"]
[EventType "swiss"]
[EventCountry "GRE"]
[SourceTitle "playchess.com"]
[Source "ChessBase"]
[SourceQuality "1"]
[TimeControl "40/5400+30:1800+30"]

1. d4 {[%emt 0:00:00]} d5 {[%emt 0:00:00]} 2. c4 {[%emt 0:00:00]} c6 {[%emt 0:00:00]} 3. Nf3 {[%emt 0:00:00]} Nf6 {[%emt 0:00:06]} 4. g3 {[%emt 0:00:22]} Bf5 {[%emt 0:04:11]} 5. Bg2 {[%emt 0:00:09]} e6 {[%emt 0:00:09]} 6. O-O {[%emt 0:00:04]} Nbd7 {[%emt 0:00:04]} 7. Ne5 {[%emt 0:00:41]} Bd6 {[%emt 0:04:10]} 8. f4 {[%emt 0:01:12]} O-O {[%emt 0:03:32]} 9. Nc3 {[%emt 0:00:16]} Bb4 {[%emt 0:02:39]} 10. h3 {[%emt 0:10:20]} Bxc3 {[%emt 0:09:43]} 11. bxc3 {[%emt 0:00:03]} Nxe5 {[%emt 0:06:54]} ({Black should try} 11... Qc7 $15) 12. dxe5 {[%emt 0:02:11]} Nd7 {[%emt 0:04:15]} 13. g4 {[%emt 0:01:42]} Bg6 $14 {[%emt 0:02:30]} 14. cxd5 {[%emt 0:05:08]} cxd5 {[%emt 0:00:17]} 15. f5 {[%emt 0:01:13]} exf5 {[%emt 0:00:07]} 16. gxf5 {[%emt 0:00:09]} Bh5 {[%emt 0:00:05]} 17. Bf4 {[%emt 0:00:51]} Re8 {[%emt 0:02:24]} 18. Qd4 {[%emt 0:01:28]} Bxe2 {[%emt 0:01:43]} 19. Rf2 {[%emt 0:01:56]} Bc4 {[%emt 0:00:25]} 20. Rb1 {[%emt 0:01:43]} b6 {[%emt 0:01:30]} 21. Re1 {[%emt 0:04:42]} Nc5 {[%emt 0:03:02]} 22. Re3 {[%emt 0:01:42]} Rc8 {[%emt 0:03:31]} 23. e6 {[%emt 0:05:20]} Ne4 {[%emt 0:08:06]} 24. Bxe4 {[%emt 0:06:53]} dxe4 {[%emt 0:00:12]} 25. Bd6 {[%emt 0:00:02]} Bxe6 {[%emt 0:03:39]} 26. fxe6 {[%emt 0:04:48]} Rxe6 {[%emt 0:00:16]} 27. Bf4 {[%emt 0:00:19]} Qe7 {[%emt 0:06:04]} 28. Rg3 {[%emt 0:01:50]} Rg6 {[%emt 0:00:57]} 29. Rxg6 {[%emt 0:03:32]} hxg6 {[%emt 0:00:09]} 30. Qe5 {[%emt 0:06:46]} Qd7 {[%emt 0:01:49]} 31. Be3 {[%emt 0:03:02]} Re8 {[%emt 0:01:20]} 32. Qf4 {[%emt 0:00:06]} f6 {[%emt 0:01:42]} 33. Qg4 {[%emt 0:02:25]} Qd3 {[%emt 0:07:47]} 34. Qxg6 {[%emt 0:04:40]} Re7 {[%emt 0:00:49]} 35. Bd4 {[%emt 0:04:47]} Qxh3 {[%emt 0:00:28]} 36. Rxf6 {[%emt 0:02:54]} e3 {[%emt 0:02:15]} 37. Rd6 {[%emt 0:02:31]} Qc8 {[%emt 0:01:08]} 38. Qg5 {[%emt 0:00:15]} Qe8 {[%emt 0:03:46]} 39. Re6 {[%emt 0:05:07]} Qf7 {[%emt 0:01:12]} 40. Rxe7 {[%emt 0:00:00]} Qf2+ {[%emt 0:00:00]} 41. Kh1 {[%emt 0:01:29]} Qf1+ {[%emt 0:00:10]} 42. Kh2 {[%emt 0:00:02]} Qf2+ {[%emt 0:00:05]} 43. Kh3 {[%emt 0:00:16]} Qf3+ {[%emt 0:00:06]} 44. Kh4 {[%emt 0:00:34]} Qh1+ {[%emt 0:00:05]} 45. Kg4 {[%emt 0:00:07]} Qg2+ {[%emt 0:00:05]} 46. Kf4 {[%emt 0:00:12]} 1-0

[Event "WYCC 2018 O14"]
[Site "Halkidiki"]
[Date "2018.10.23"]
[Round "5"]
[White "Juhasz, Agoston"]
[Black "Boulos, Carlos"]
[Result "1-0"]
[ECO "C48"]
[WhiteElo "2174"]
[BlackElo "2003"]
[Annotator "NA"]
[PlyCount "71"]
[EventDate "2018.10.20"]
[EventType "swiss"]
[EventCountry "GRE"]
[SourceTitle "playchess.com"]
[Source "ChessBase"]
[SourceQuality "1"]
[TimeControl "40/5400+30:1800+30"]

1. e4 {[%emt 0:00:00]} e5 {[%emt 0:00:00]} 2. Nf3 {[%emt 0:00:00]} Nc6 {[%emt 0:00:24]} 3. Nc3 {[%emt 0:00:00]} Nf6 {[%emt 0:00:38]} 4. Bb5 {[%emt 0:00:24]} Bd6 {[%emt 0:00:58]} 5. d3 {[%emt 0:01:21]} a6 {[%emt 0:00:52]} 6. Ba4 {[%emt 0:00:46]} O-O {[%emt 0:00:22]} 7. Bg5 {[%emt 0:14:01]} h6 {[%emt 0:01:35]} 8. Bh4 {[%emt 0:01:17] LiveBook: 5 Games} b5 {[%emt 0:00:54]} 9. Bb3 {[%emt 0:02:28]} Be7 {[%emt 0:00:12]} 10. O-O {[%emt 0:04:50]} Re8 {[%emt 0:02:48]} 11. Re1 $11 {[%emt 0:09:47]} d6 {[%emt 0:04:06]} 12. a3 {[%emt 0:03:11]} Bg4 {[%emt 0:06:29]} 13. Ne2 {[%emt 0:05:57]} Bxf3 {[%emt 0:12:42]} 14. gxf3 {[%emt 0:00:14]} g5 {[%emt 0:02:58]} 15. Bg3 {[%emt 0:00:16]} h5 {[%emt 0:02:26]} 16. Qd2 {[%emt 0:07:38]} Nh7 {[%emt 0:00:55]} 17. Bd5 {[%emt 0:01:55]} Qd7 {[%emt 0:04:14]} 18. Qc3 {[%emt 0:00:57]} Nd4 {[%emt 0:00:19]} 19. Nxd4 {[%emt 0:03:12]} exd4 {[%emt 0:00:59]} 20. Qb3 {[%emt 0:00:25]} h4 {[%emt 0:04:24]} 21. Bxf7+ {[%emt 0:00:21]} Kg7 {[%emt 0:00:31]} 22. Bxe8 {[%emt 0:10:57]} Rxe8 {[%emt 0:00:07]} 23. a4 {[%emt 0:04:59]} Qh3 {[%emt 0:28:22]} 24. axb5 {[%emt 0:02:42]} Rh8 {[%emt 0:15:40]} 25. e5 {[%emt 0:10:08]} g4 {[%emt 0:08:40]} 26. Qe6 {[%emt 0:03:47]} hxg3 {[%emt 0:00:54]} 27. Qxe7+ {[%emt 0:00:40]} Kg6 {[%emt 0:00:25]} 28. Qe6+ {[%emt 0:00:57]} Kh5 {[%emt 0:00:15]} 29. Qxg4+ {[%emt 0:05:05]} Qxg4 {[%emt 0:00:08]} 30. fxg4+ {[%emt 0:00:03]} Kxg4 {[%emt 0:00:05]} 31. Re4+ {[%emt 0:01:26]} Kh3 {[%emt 0:00:59]} 32. fxg3 {[%emt 0:00:41]} Ng5 {[%emt 0:00:07]} 33. Rh4+ {[%emt 0:00:09]} Rxh4 {[%emt 0:00:06]} 34. gxh4 {[%emt 0:00:04]} Nf3+ {[%emt 0:00:13]} 35. Kf2 {[%emt 0:00:09]} Nxe5 {[%emt 0:00:20]} 36. bxa6 {[%emt 0:00:09]} 1-0

[Event "WYCC 2018 O14"]
[Site "Halkidiki"]
[Date "2018.10.23"]
[Round "5"]
[White "Srihari L R"]
[Black "Tanriverdi, Enes"]
[Result "1-0"]
[ECO "A05"]
[WhiteElo "2170"]
[BlackElo "2317"]
[Annotator "NA"]
[PlyCount "75"]
[EventDate "2018.10.20"]
[EventType "swiss"]
[EventCountry "GRE"]
[SourceTitle "playchess.com"]
[Source "ChessBase"]
[SourceQuality "1"]
[TimeControl "40/5400+30:1800+30"]

1. Nf3 {[%emt 0:00:00]} Nf6 {[%emt 0:00:12]} 2. c4 {[%emt 0:03:32]} g6 {[%emt 0:00:25]} 3. b4 {[%emt 0:00:30]} Bg7 {[%emt 0:00:54]} 4. Bb2 {[%emt 0:00:06]} O-O {[%emt 0:04:21]} 5. g3 {[%emt 0:00:20]} d6 {[%emt 0:00:14]} 6. Bg2 {[%emt 0:00:07]} e5 {[%emt 0:00:10]} 7. d3 {[%emt 0:00:10]} Nc6 {[%emt 0:01:57]} 8. b5 {[%emt 0:03:45]} Ne7 {[%emt 0:00:06]} 9. O-O {[%emt 0:00:08] LiveBook: 8 Games} h6 {[%emt 0:00:32] A05: Réti Opening: 1 Nf3 Nf6} 10. Nbd2 {[%emt 0:01:03]} Be6 {[%emt 0:00:29]} 11. Qc2 {[%emt 0:00:38]} Nd7 {[%emt 0:01:25]} 12. d4 {[%emt 0:03:38]} f5 {[%emt 0:17:42]} 13. dxe5 {[%emt 0:01:12]} dxe5 {[%emt 0:00:14]} 14. e4 {[%emt 0:00:10]} f4 $1 {[%emt 0:01:15]} 15. c5 {[%emt 0:06:28]} c6 {[%emt 0:00:36]} 16. Nc4 {[%emt 0:00:32] [#]} Qc7 $146 {[%emt 0:01:37]} ({Predecessor:} 16... Qb8 17. b6 axb6 18. Nxb6 Nxb6 19. cxb6 {1-0 (42) Akopian,V (2673)-Tukhaev,A (2512) Plovdiv 2008}) (16... cxb5 $11 17. Ncxe5 Nxe5 18. Bxe5 Bxe5 19. Nxe5 Qc7) 17. b6 $1 {[%emt 0:00:06]} Qb8 {[%emt 0:02:02]} ({Black should try} 17... axb6 $14 18. cxb6 Nxb6 19. Bxe5 Bxe5 20. Ncxe5 fxg3) 18. a4 {[%emt 0:02:46]} g5 {[%emt 0:01:03]} 19. Rfd1 {[%emt 0:05:45]} Ng6 {[%emt 0:09:32]} 20. a5 {[%emt 0:10:22]} g4 {[%emt 0:10:50]} 21. Ne1 {[%emt 0:06:18]} h5 $16 {[%emt 0:01:05]} 22. Bf1 {[%emt 0:02:30]} fxg3 {[%emt 0:01:37]} 23. hxg3 {[%emt 0:01:02]} h4 {[%emt 0:00:40]} 24. Rd6 {[%emt 0:00:19]} hxg3 {[%emt 0:12:58]} 25. fxg3 {[%emt 0:00:13]} Rxf1+ {[%emt 0:01:58]} 26. Kxf1 {[%emt 0:04:04]} Qf8+ {[%emt 0:03:34]} 27. Kg1 {[%emt 0:11:34]} Nxc5 {[%emt 0:18:12]} 28. Ba3 {[%emt 0:02:53]} Qf7 {[%emt 0:00:12]} 29. Bxc5 {[%emt 0:00:13]} Bxc4 {[%emt 0:00:04]} 30. Bf2 {[%emt 0:00:36]} Bb3 {[%emt 0:02:29]} 31. Qb2 {[%emt 0:00:18]} Bc4 {[%emt 0:01:19]} 32. bxa7 {[%emt 0:01:38]} c5 {[%emt 0:01:13]} 33. Qb6 {[%emt 0:01:13]} Rf8 {[%emt 0:01:02]} 34. Qxc5 {[%emt 0:01:18]} Ba6 {[%emt 0:01:29]} 35. Rxg6 {[%emt 0:02:15]} Qxg6 {[%emt 0:00:05]} 36. Qxf8+ {[%emt 0:00:04]} Bxf8 {[%emt 0:00:01]} 37. a8=Q {[%emt 0:00:07]} Qxe4 {[%emt 0:00:40]} 38. Bc5 {[%emt 0:00:07]} 1-0